Cogmind - Beta 14 @@@ ROGUE MODE // 2024.11.11 @ 14:01:30 Player: Zunekagek Result: Destroyed by as-70349 with Assembled Maul Performance ------------- Evolutions (0) 0 Regions Visited (2) 400 Robots Destroyed (15) 75 Value Destroyed (427) 427 Prototype IDs (0) 0 Alien Tech Used (0) 0 Bonus (0) 0 TOTAL SCORE: 902 Bonus ------- None Cogmind --------- Core Integrity 0/250 Matter 221/300 Energy 195/250 System Corruption 2% Temperature Cool (56) Movement Core (300) Ox5 Location -10/Mines Parts ------- > --- POWER (1) -------- Ion Engine > --- PROPULSION (2) --- (None) > --- UTILITY (2) ------ Small Storage Unit > --- WEAPON (2) ------- Autogun Light Cannon > --- INVENTORY (8) ---- Heat Sink Weight Redist. System EM Pulse Gun Peak State ------------ > --- POWER ------------ Ion Engine > --- PROPULSION ------- Aluminum Leg Aluminum Leg > --- UTILITY ---------- Small Storage Unit Improved Targeting Computer > --- WEAPON ----------- Autogun Autogun > --- INVENTORY -------- Ion Engine Aluminum Leg Weight Redist. System EM Pulse Gun Autogun Autogun Light Cannon [Rating: 11] Favorites ----------- Power Light Ion Engine Engine Light Ion Engine Propulsion Light Treads Treads Light Treads Leg Aluminum Leg Utility Small Storage Unit Device Heat Sink Storage Small Storage Unit Processor Improved Targeting Computer Weapon Medium Laser Energy Gun Medium Laser Ballistic Gun Light Assault Rifle Ballistic Cannon Light Cannon Build | -11 -10 -10 ------- Run | Yrd Mat Min Slots Evolved . | . . . Power . | . . . Propulsion . | . . . Utility . | . . . Weapon . | . . . Parts Attached 23 | 6 10 7 Power 4 | 1 2 1 Engine 4 | 1 2 1 Core . | . . . Reactor . | . . . Propulsion 6 | 2 2 2 Treads 2 | 2 . . Leg 4 | . 2 2 Wheel . | . . . Hover . | . . . Flight . | . . . Utility 4 | 1 2 1 Device 2 | . 2 . Storage 1 | 1 . . Processor 1 | . . 1 Hackware . | . . . Protection . | . . . Artifact . | . . . Weapon 9 | 2 4 3 Energy Gun 2 | 1 1 . Energy Cannon . | . . . Ballistic Gun 6 | 1 3 2 Ballistic Cannon 1 | . . 1 Launcher . | . . . Special Weapon . | . . . Impact Weapon . | . . . Slashing Weapon . | . . . Piercing Weapon . | . . . Special Melee Weapon . | . . . Unidentified Prototypes . | . . . Parts Lost 12 | . 3 9 Power 1 | . . 1 Propulsion 6 | . 2 4 Utility 2 | . . 2 Weapon 3 | . 1 2 Highest Loss Streak 7 | . 1 7 To Critical Strikes . | . . . Average Slot Usage (%) 94 | . 93 97 Engine 14 | . 14 14 Treads 13 | . 18 . Leg 12 | . 6 26 Device 7 | . 10 . Storage 14 | . 14 14 Processor 3 | . . 13 Energy Gun 9 | . 12 . Ballistic Gun 17 | . 14 25 Peak Build Rating 11 | 6 10 11 Average Rating 7 | 4 6 10 On Entrance 5 | . 6 10 Naked Turns . | . . . Heaviest Build 17 | 11 17 16 Greatest Support 40 | 40 40 20 Greatest Overweight (x) 4 | . 4 . Average Overweight (x) . | . . . Largest Inventory Capacity 8 | 8 8 8 Average Capacity 7 | 6 8 8 Most Carried 8 | 2 8 8 Average Carried 5 | 1 4 7 Final Capacity 8 | 8 8 8 Final Carried 7 | 2 7 3 Class Distribution -------------------- 89% | Mutant 10% | Scavenger-Mutant Dominant Class ---------------- Mutant | -10/Materials Mutant | -10/Mines Resources | -11 -10 -10 ----------- Run | Yrd Mat Min Matter Collected 490 | 233 139 118 Remotely . | . . . Salvage Created 497 | . 413 84 Parts 29 | . 26 3 Haulers Intercepted 1 | . 1 . Recyclers Shooed . | . . . Parts Field Recycled . | . . . Retrieved Matter . | . . . Parts Self-Destructed . | . . . Prevented . | . . . Kills | -11 -10 -10 ------- Run | Yrd Mat Min Combat Hostiles Destroyed 14 | . 11 3 Guns 14 | . 11 3 Classes Destroyed 4 | . 3 1 Hauler 1 | . 1 . Swarmer 4 | . 4 . Grunt 9 | . 7 2 Demolisher 1 | . . 1 Best Kill Streak 5 | . 5 2 Combat Bots Only 5 | . 5 2 Max Kills in Single Turn 1 | . 1 1 Gunslinging . | . . . Exploded . | . . . Melee . | . . . Uniques/NPCs Destroyed . | . . . Combat | -11 -10 -10 -------- Run | Yrd Mat Min Hostile Shots Fired 113 | . 70 43 Missed 23 | . 16 7 Damage Taken 1496 | . 636 860 Core 265 | . 124 141 Absorbed by Shields . | . . . Core Remaining (%) 100 | 100 . . Volleys Fired 63 | . 44 19 Largest 2 | . 2 2 Hottest 70 | . 70 58 Shots Fired 126 | . 88 38 Gun 118 | . 88 30 Cannon 8 | . . 8 Launcher . | . . . Special . | . . . Kinetic 82 | . 44 38 Thermal 44 | . 44 . Explosive . | . . . Electromagnetic . | . . . Robot Hit Streak 12 | . 12 6 Robot Miss Streak 5 | . 5 2 Penetration Max . | . . . Secondary Targets 1 | . 1 . Max Gunslinging Chain 1 | . 1 . Shots Hit Robots 78 | . 51 27 Core Hits 32 | . 23 9 Critical Kills . | . . . Critical Parts Destroyed . | . . . Critical Strikes 1 | . 1 . Burn 1 | . 1 . Melee Attacks . | . . . Impact . | . . . Slashing . | . . . Piercing . | . . . Sneak Attacks . | . . . Combat Hostiles . | . . . Follow-up Attacks . | . . . Damage Inflicted 924 | . 534 390 Guns 850 | . 527 323 Cannons 67 | . . 67 Explosions . | . . . Melee . | . . . Ramming 7 | . 7 . Kinetic 585 | . 195 390 Thermal 332 | . 332 . Explosive . | . . . Electromagnetic . | . . . Impact . | . . . Slashing . | . . . Piercing . | . . . Highest Corruption 2 | . . 2 Average Corruption 2 | . . 2 Corruption Purged . | . . . Corruption Blocked . | . . . Overload Shots . | . . . Overflow Damage . | . . . Projectiles . | . . . Explosions . | . . . Melee . | . . . Knockbacks 2 | . . 2 Impact . | . . . Kinetic 2 | . . 2 Secondary . | . . . Self-Inflicted Damage . | . . . Shots . | . . . Rammed 3 | . 3 . Targets Rammed 3 | . 3 . Kicked . | . . . Crushed . | . . . Highest Temperature 142 | . 142 58 Average Temperature 25 | . 26 23 Received Heat Transfer 436 | . 249 187 Siege Activations . | . . . Robots Corrupted . | . . . Combat Hostiles . | . . . Parts Fried . | . . . Impact Corruptions . | . . . Robots Melted . | . . . Combat Hostiles . | . . . Parts Melted 5 | . 5 . Heat Transferred 1073 | . 1073 . Parts Sabotaged . | . . . Parts Stolen . | . . . Parts Stripped . | . . . Power Chain Reactions . | . . . Alert | -11 -10 -10 ------- Run | Yrd Mat Min Peak Influence 267 | . 267 93 Initial 63 | . . 63 Average 101 | . 120 84 Maximum Alert Level 1 | . 1 . Low Security (%) 95 | 100 93 100 Level 1 4 | . 6 . Level 2 . | . . . Level 3 . | . . . Level 4 . | . . . Level 5 . | . . . High Security . | . . . Max Security . | . . . Squads Dispatched 2 | . 2 . Investigation . | . . . Extermination . | . . . Reinforcement 2 | . 2 . Assault . | . . . Garrison . | . . . Intercept . | . . . Searches Triggered . | . . . Construction Impeded . | . . . Haulers Reinforced . | . . . Active Scanning Responses . | . . . Cargo Convoy Interrupts . | . . . Stealth | -11 -10 -10 --------- Run | Yrd Mat Min Distress Signals 1 | . 1 . Communications Jammed . | . . . Distress Signals . | . . . Times Spotted 29 | . 23 6 Peak Tracking Total 6 | . 6 3 Tactical Retreats 4 | . 4 . Traps | -11 -10 -10 ------- Run | Yrd Mat Min Traps Triggered 1 | . 1 . Indirectly . | . . . Trap Hack Attempts . | . . . Triggered . | . . . Disarmed . | . . . Reprogrammed . | . . . Reused . | . . . Traps Extracted . | . . . Installed . | . . . Triggered . | . . . Machines | -11 -10 -10 ---------- Run | Yrd Mat Min Machines Disabled . | . . . Max in Single Turn . | . . . Machines Repaired . | . . . Machines Dismantled . | . . . Machines Sabotaged . | . . . Overloaded Fab Kills . | . . . Hacking | -11 -10 -10 --------- Run | Yrd Mat Min Machines Accessed 1 | . 1 . Terminals 1 | . 1 . Fabricators . | . . . Repair Stations . | . . . Recycling Units . | . . . Scanalyzers . | . . . Garrison Access . | . . . Total Hacks 1 | . 1 . Successful . | . . . Failed 1 | . 1 . Catastrophic 1 | . 1 . Database Lockouts . | . . . Manual 1 | . 1 . Terminals 1 | . 1 . Fabricators . | . . . Repair Stations . | . . . Recycling Units . | . . . Scanalyzers . | . . . Garrison Access . | . . . Terminal Hacks . | . . . Fabricator Hacks . | . . . Repair Station Hacks . | . . . Recycling Unit Hacks . | . . . Scanalyzer . | . . . Garrison Access Hacks . | . . . Unauthorized Hacks . | . . . Terminals . | . . . Fabricators . | . . . Repair Stations . | . . . Recycling Units . | . . . Scanalyzers . | . . . Garrison Access . | . . . Data Cores Recovered . | . . . Used . | . . . Hacking Detections 1 | . 1 . Full Trace Events . | . . . Feedback Events . | . . . Feedback Blocked . | . . . Robot Schematics Acquired . | . . . Robots Built . | . . . Authchips . | . . . Time . | . . . Total Robot Build Rating . | . . . Part Schematics Acquired . | . . . Parts Built . | . . . Authchips . | . . . Time . | . . . Total Part Build Rating . | . . . Parts Repaired . | . . . Time . | . . . Parts Recycled . | . . . Recycled Matter . | . . . Retrieved Matter . | . . . Retrieved Components . | . . . Parts Scanalyzed . | . . . Part Schematics Acquired . | . . . Parts Damaged . | . . . Bothacking | -11 -10 -10 ------------ Run | Yrd Mat Min Used RIF Installer . | . . . Robots Hacked . | . . . Non-combat . | . . . Combat . | . . . Robot Hacks Applied . | . . . Relay Couplers Released . | . . . Fabnet Peak Effective % . | . . . Robots Rewired . | . . . Allies Hacked . | . . . Hacks Repelled . | . . . Allies | -11 -10 -10 -------- Run | Yrd Mat Min Total Allies . | . . . Largest Group . | . . . Highest-Rated Group . | . . . Highest-Rated Ally . | . . . Total Orders . | . . . Ally Attacks . | . . . Total Damage . | . . . Kills . | . . . Allies Corrupted . | . . . Allies Melted . | . . . Intel | -11 -10 -10 ------- Run | Yrd Mat Min Robot Analysis Total . | . . . Derelict Logs Recovered 1 | . . 1 Drone Launches . | . . . Drone Recoveries . | . . . Exploration | -11 -10 -10 ------------- Run | Yrd Mat Min Turns Passed 933 | 73 621 239 Spaces Moved 463 | 41 274 148 Core 3 | 2 1 . Treads 205 | 39 166 . Legs 255 | . 107 148 Wheels . | . . . Hover . | . . . Flight . | . . . Fastest Speed 50 | 50 120 120 Average Speed 137 | 154 144 120 Slowest Speed 250 | 160 250 120 Overloaded Moves . | . . . Propulsion Burnouts . | . . . Robots Hopped . | . . . Cave-ins Triggered . | . . . Exploration Rate (%) 25 | 4 43 30 Regions Visited 2 Branch Regions 1 Pre-discovered Areas . | . . . Known Exits Taken . | . . . Unknown Exits Taken 2 | 1 1 . Scrap Searched . | . . . Spaces Dug . | . . . Terrain Destroyed . | . . . Melee . | . . . Projectile . | . . . AOE . | . . . Terrain Rammed . | . . . Walls Destroyed . | . . . Machines Disabled . | . . . Actions | -11 -10 -10 --------- Run | Yrd Mat Min Total 644 | 48 418 178 Wait 68 | . 68 . Move 461 | 40 273 148 Hop . | . . . Pick Up 15 | 2 10 3 Fast Attach 11 | 6 5 . Attach 8 | . 1 7 Detach 2 | . 2 . Swap 4 | . 4 . Drop 9 | . 8 1 Fire 63 | . 44 19 Melee . | . . . Ram . | . . . Kick . | . . . Crush 3 | . 3 . Escape Stasis . | . . . Rewire . | . . . Trap . | . . . Miscellaneous . | . . . Route ------- -11/Scrapyard -10/Materials (discovered 3 exits: [*Mat] / [*Min x2]) -10/Mines History --------- Turn | Location | Event 41 | -11/Scrapyard | Discovered new exit (range 15) 74 | -11/Scrapyard | Entered Materials 264 | -10/Materials | Discovered new exit (range 9) 315 | -10/Materials | Build established: Mutant 382 | -10/Materials | Discovered new exit (range 7) 631 | -10/Materials | Discovered new exit (range 9) 695 | -10/Materials | Entered Mines 706 | -10/Mines | Core integrity fell below 50% 783 | -10/Mines | Learned 2 Materials zone layouts 861 | -10/Mines | Assembled infested the area 922 | -10/Mines | Core integrity fell below 20% 934 | -10/Mines | Destroyed by as-70349 with Assembled Maul Last Messages --------------- payload. 00906_ D-53 Grenadier unfolds itself. 00906_ T-07 Excavator destroyed. 00907_ Dropped Autogun. 00909_ Autogun destroyed. 00910_ Aluminum Leg destroyed. 00912_ The unstable cave ceiling collapses. 00913_ D-53 Grenadier destroyed. 00917_ Ion Engine destroyed. 00920_ The unstable cave ceiling collapses. 00920_ D-53 Grenadier knocked back. 00925_ The unstable cave ceiling collapses. 00925_ Autogun destroyed. 00925_ D-53 Grenadier knocked back. 00926_ D-53 Grenadier destroyed. 00929_ Aluminum Leg destroyed. 00929_ as-70349 knocked back. 00931_ Imp. Targeting Computer destroyed. 00931_ System corrupted by crushing effect (+2). 00931_ Knocked back. Map ----- +----------------------------------------------------+ | ???????????????????????????????????? | | ???????????????????????????????????? | | ???????????????????????????????????? | | ???????????????????????????????????? | | ???????????????????????????????????? | | ???????????????????????????????????? | | ???????????????????????????????????? | | ???????????????????????????????????? | | ???????????????????????????????????? | | ???????????????????????????????????? | | ?????????????????????#####?????????? | | ????????????????????## ########??? | | ????????????????????# #??? | | ???????????????????## #??? | | ???????????????????# ##??? | | ???????????????????# #####???? | | ???????????????????## #???????? | | ????????????????????# ###?????? | | ????????????????????# ##????? | | ????????????????????## #????? | | ?????????????????????# #????? | | ?????????????????????# #????? | | ?????????????????????# ##????? | | ?????????????????????## ##???? | | ?????????????????????# #???? | | ?????????????????????# @ #???? | | ?????????????????????# a #???? | | ?????????????????????# a #???? | | ?????????????????????# ##??? | | ???????????????????#?## % % #??? | | ??????????????????## ?## # # #??? | | ??????????????????# ### #??? | | ??????????????????# #??? | | ?????????????????## ##??? | | ?????????????????# #???? | | ?????????????????# ##???? | | ????????????????# ## ###????? | | ???????????????# #?# #??????? | | ??????????????? #??# #??????? | | ???????????????? ##### #??????? | | ???????????????? #?# #??????? | | ?????????????????# ??# #??????? | | ??????????????????#??### ####??????? | | ???????????###???????# #?????????? | | ###???????? #???????# ###?????????? | | ##???????# #???????# #???????????? | | #???????# #???????# #???????????? | | #???????# ##??????# #???????????? | | #?????### ######## #???????????? | | ##???## #???????????? | +----------------------------------------------------+ Best States ------------- Heat Dissipation 35 Energy Generation 10 Energy Capacity 250 Matter Stores 300 Matter Capacity 300 Sight Range 16 Terrain Scan Density 10 Evasion (%) 55 Targeting Accuracy 6 Recoil Reduction 2 Item Schematics ----------------- None Robot Schematics ------------------ None Fabricated ------------ Nothing Alien Tech Used ----------------- None Achievements -------------- None Challenges ------------ None Game ------ Seed ColdHugeReplica Manual? 0 Play Time 00:11:36 Cumulative 20.6 hours Start 2024.11.11 @ 13:50:24 End 2024.11.11 @ 14:01:30 Sessions 1 Manual Loads 0 Difficulty Rogue Special Mode None Game No. 20 Rogue 20 Adventurer 0 Explorer 0 Win Type - Total 0 Types 0/0/0/0/0/0/0/0/0 Lore% 9 Gallery% 21 Achievement% 19 Wizard Run 0 Options --------- Layout 1 ASCII 0 Keyboard 1 Movement Numpad Keybinds 0 Fullscreen 1 Font 24/Smallcaps Map View 50x35 Zoom Use 1% Tactical HUD 1 Map Filters NONE Filters NONE Steam 1 RUN: f2431ee5-ed8f-47c0-9037-2b00c56f10b7